bitfinex/quotes_SOLUSD_20260309
["timestamp","ask_amount","ask_price","bid_price","bid_amount"]
[1773062137812,11.85002607,84.388,84.37,1e-08]
[1773062138011,11.84940064,84.393,84.37,1e-08]
[1773062138206,0.76191041,84.392,84.37,1e-08]
[1773062139124,11.84960481,84.391,84.37,1e-08]
[1773062139631,0.76191041,84.39,84.37,1e-08]
[1773062140232,0.76191041,84.389,84.37,1e-08]
[1773062141226,0.76191041,84.387,84.37,1e-08]
[1773062143709,0.76191041,84.385,84.37,1e-08]
[1773062144119,0.76191041,84.393,84.37,1e-08]
[1773062144311,0.76191041,84.399,84.37,12.256376]
[1773062145231,0.76191041,84.399,84.37,11.5519937]
[1773062145425,0.14216157,84.429,84.39,11.55199369]
[1773062145426,0.76191041,84.418,84.39,11.55199369]
[1773062145839,0.76191041,84.416,84.386,11.85023414]
[1773062146533,0.76191041,84.416,84.381,12.55526422]
[1773062146739,0.76191041,84.416,84.382,0.7043823]
[1773062148032,0.70890717,84.414,84.383,11.85072822]
[1773062148233,0.70890717,84.427,84.4,11.55199369]
[1773062148436,0.70890717,84.427,84.41,11.55199369]
[1773062148737,0.70890717,84.426,84.4,11.55199369]
[1773062149232,0.70890717,84.419,84.38,11.55199369]
[1773062149614,11.55199369,84.41,84.377,0.70683802]
[1773062149939,0.70890717,84.407,84.381,11.85100911]
[1773062150314,0.70890717,84.407,84.382,0.70683802]
[1773062150642,0.70890717,84.413,84.382,0.70683802]
[1773062150940,11.84637619,84.414,84.382,0.70683802]
[1773062150941,0.70890717,84.409,84.382,0.70683802]
[1773062151134,0.70890717,84.409,84.376,11.85157135]
[1773062151339,0.70890717,84.399,84.376,11.85157135]
[1773062151735,0.70890717,84.399,84.37,23.40454011]
[1773062152240,0.70890717,84.397,84.37,11.85254642]
[1773062153233,0.70890717,84.397,84.37,23.40454011]
[1773062153437,0.70890717,84.397,84.371,0.70683802]
[1773062154639,12.55778025,84.397,84.371,0.70683802]
[1773062155141,0.70890717,84.397,84.371,0.70683802]
[1773062155438,0.70890717,84.395,84.37,1e-08]
[1773062155941,0.70890717,84.389,84.37,1e-08]
[1773062156528,0.70890717,84.379,84.37,1e-08]
[1773062157146,11.84890279,84.396,84.371,11.85241374]
[1773062157440,11.84707791,84.409,84.381,0.70683802]
[1773062157646,41.4647727,84.409,84.381,0.70683802]
[1773062157831,11.84707791,84.409,84.383,0.70683802]
[1773062158544,41.4647727,84.409,84.383,0.70683802]
[1773062159243,0.70890717,84.408,84.383,0.70683802]
[1773062159843,106.34178382,84.666,84.385,0.70683802]
[1773062159844,0.70890717,84.414,84.385,0.70683802]
[1773062160427,11.84623585,84.415,84.385,0.70683802]
[1773062161250,0.70890717,84.414,84.385,0.70683802]
[1773062161626,11.84651653,84.413,84.385,0.70683802]
[1773062161836,11.84651653,84.413,84.387,0.70683802]
[1773062162036,12.5554237,84.413,84.387,0.70683802]
[1773062162244,0.70890717,84.412,84.387,0.70683802]
[1773062163749,0.71649594,84.418,84.389,0.67203042]
[1773062166650,11.84595519,84.417,84.389,0.67203042]
[1773062166856,0.71649594,84.416,84.389,0.67203042]
[1773062167255,0.71649594,84.438,84.401,0.67203042]
[1773062167443,0.71649594,84.449,84.411,0.67203042]
[1773062167642,0.71649594,84.446,84.411,0.67203042]
[1773062169061,0.71649594,84.444,84.413,0.67203042]
[1773062170258,11.84230782,84.443,84.421,0.67203042]
[1773062170655,41.44807739,84.443,84.421,0.67203042]
[1773062170852,0.71649594,84.442,84.421,0.67203042]
[1773062171457,0.71649594,84.456,84.431,0.67203042]
[1773062171664,0.71649594,84.453,84.431,0.02491418]
[1773062171856,0.71649594,84.453,84.42,11.55199369]
[1773062172259,0.71649594,84.449,84.414,11.8463518]
[1773062172557,0.71649594,84.449,84.352,47.41993352]
[1773062172558,0.71649594,84.439,84.4,11.55199369]
[1773062172759,0.71649594,84.429,84.39,11.55199369]
[1773062173261,11.55199369,84.42,84.375,41.48148147]
[1773062173555,0.71649594,84.419,84.38,12.22402411]
[1773062173741,0.71649594,84.419,84.39,11.55199369]
[1773062174160,0.71649594,84.419,84.393,0.67203042]
[1773062174356,11.84581487,84.418,84.393,0.67203042]
[1773062174757,0.71649594,84.419,84.393,0.67203042]
[1773062175065,12.56223131,84.419,84.393,0.67203042]
[1773062175760,0.71649594,84.419,84.393,0.67203042]
[1773062175969,11.84371039,84.433,84.401,0.67203042]
[1773062177255,0.71649594,84.433,84.403,0.67203042]
[1773062178864,0.71649594,84.431,84.404,11.84777972]
[1773062179966,0.71649594,84.431,84.405,0.67203042]
[1773062180762,0.71649594,84.435,84.405,0.67203042]
[1773062181353,0.71649594,84.433,84.405,0.67203042]
[1773062181670,0.71649594,84.429,84.405,0.67203042]
[1773062182473,0.71649594,84.419,84.376,12.5237418]
[1773062182649,0.71649594,84.409,84.376,12.5237418]
[1773062182845,0.71649594,84.409,84.38,11.55000766]
[1773062183262,0.71649594,84.409,84.372,11.85221817]
[1773062183464,0.71649594,84.407,84.373,0.67203042]
[1773062183968,0.71649594,84.399,84.372,11.85221817]
[1773062184355,0.71649594,84.399,84.373,0.67203042]
[1773062186175,0.71649594,84.397,84.37,11.55000767]
[1773062186672,0.71649594,84.397,84.37,23.4024752]
[1773062187169,0.71649594,84.397,84.371,0.67203042]
[1773062188269,0.71649594,84.397,84.372,11.85227326]
[1773062188464,29.61515934,84.417,84.381,0.67203042]
[1773062188770,0.71649594,84.415,84.381,0.67203042]
[1773062189974,0.71649594,84.415,84.38,12.22203808]
[1773062190272,0.71649594,84.409,84.38,11.55000766]
[1773062190473,0.71649594,84.407,84.372,42.15498684]
[1773062190659,0.71649594,84.407,84.372,41.48295642]
[1773062190858,0.71649594,84.407,84.373,0.67203042]
[1773062192070,0.71649594,84.407,84.38,12.22203808]
[1773062192784,47.35148518,84.475,84.37,1e-08]
[1773062192785,0.71649594,84.423,84.391,0.67203042]
[1773062195581,0.62273168,84.421,84.391,12.52150507]
[1773062196278,0.62273168,84.419,84.387,11.85009107]
[1773062198186,0.62273168,84.417,84.39,12.19564981]
[1773062198495,0.62273168,84.417,84.386,0.64564215]
[1773062198878,0.62273168,84.409,84.38,11.85106576]
[1773062199183,0.62273168,84.409,84.376,11.85165376]
[1773062200787,0.62273168,84.399,84.37,1e-08]
[1773062200982,0.62273168,84.389,84.37,1e-08]
[1773062202966,0.62273168,84.387,84.37,1e-08]
[1773062205684,11.85030692,84.386,84.37,1e-08]
[1773062205893,0.62273168,84.385,84.37,1e-08]
[1773062206590,0.62273168,84.379,84.355,11.85458321]
[1773062206788,0.62273168,84.379,84.342,0.64564215]
[1773062206989,0.62273168,84.368,84.342,0.64564215]
[1773062207495,0.62273168,84.368,84.34,0.2]
[1773062207674,0.62273168,84.359,84.34,0.2]
[1773062209180,11.85415547,84.359,84.341,11.85662963]
[1773062209384,0.59168612,84.358,84.34,0.2]
[1773062211385,0.59168612,84.349,84.33,0.2]
[1773062212899,11.85564565,84.348,84.33,0.2]
[1773062213101,0.59168612,84.347,84.33,0.2]
[1773062213482,4.31535795,84.34,84.322,29.45388259]
[1773062213684,0.59168612,84.339,84.322,28.82602026]
[1773062213877,0.59168612,84.339,84.311,0.64112359]
[1773062214204,11.85564565,84.348,84.312,0.64112359]
[1773062215379,11.85564565,84.348,84.32,4.31535795]
[1773062215581,11.85564565,84.348,84.321,0.64112359]
[1773062217008,12.08286868,84.4,84.331,0.64112359]
[1773062217208,4.31535795,84.37,84.331,0.64112359]
[1773062218792,4.31535795,84.37,84.33,4.31535795]
[1773062218793,4.31535795,84.37,84.333,0.64112359]
[1773062219003,4.31535795,84.4,84.332,41.50263244]
[1773062219004,11.85129001,84.379,84.341,0.64112359]
[1773062219392,4.31535795,84.37,84.341,0.64112359]
[1773062220992,11.85269471,84.369,84.342,11.85648905]
[1773062221192,11.85269471,84.369,84.343,0.64112359]
[1773062221907,0.28432314,84.377,84.343,0.64112359]
[1773062222108,4.31535795,84.37,84.343,0.64112359]
[1773062223421,11.85269471,84.369,84.345,0.64112359]
[1773062226708,0.4406092,84.359,84.32,4.31535795]
[1773062226911,0.41934684,84.349,84.311,11.86084852]
[1773062227115,0.41934684,84.349,84.311,41.51296983]
[1773062227416,11.85269471,84.369,84.33,4.31535795]
[1773062227588,4.31535795,84.37,84.33,4.31535795]
[1773062227793,4.31535795,84.37,84.34,4.31535795]
[1773062228210,4.31535795,84.37,84.33,4.31535795]
[1773062228593,16.16796398,84.37,84.33,4.31535795]
[1773062228794,16.16796398,84.37,84.333,0.53131008]
[1773062229016,16.54551596,84.37,84.333,0.53131008]
[1773062229518,0.37755198,84.369,84.333,0.53131008]
[1773062230493,11.85205825,84.374,84.341,0.53131008]
[1773062231117,11.85129001,84.379,84.351,0.53131008]
[1773062233122,0.3588764,84.369,84.33,4.31535795]
[1773062233302,4.31535795,84.36,84.331,0.53131008]
[1773062233695,0.3588764,84.369,84.331,0.53131008]
[1773062234005,11.85129001,84.379,84.341,0.53131008]
[1773062234408,4.31535795,84.37,84.341,0.53131008]
[1773062234792,0.3588764,84.378,84.341,0.53131008]
[1773062234993,11.85157092,84.377,84.342,11.85648905]
[1773062235303,11.85157092,84.377,84.343,0.53131008]
[1773062236596,11.85157092,84.377,84.345,0.53131008]
[1773062237507,12.21044732,84.377,84.345,0.53131008]
[1773062237706,11.85157092,84.377,84.345,0.53131008]
[1773062237915,0.3588764,84.376,84.345,0.53131008]
[1773062238621,0.3588764,84.359,84.311,0.53131008]
[1773062238819,4.31535795,84.35,84.321,0.53131008]
[1773062239703,4.32083632,84.35,84.321,0.53131008]
[1773062240397,4.32083632,84.36,84.321,0.53131008]
[1773062240613,11.85409974,84.359,84.323,0.53131008]
[1773062241519,0.3588764,84.358,84.323,0.53131008]
[1773062241708,4.32083632,84.35,84.323,0.53131008]
[1773062241904,4.67971272,84.38,84.341,0.53131008]
[1773062242112,11.85129001,84.379,84.341,0.53131008]
[1773062242418,0.3588764,84.378,84.341,0.53131008]
[1773062242815,11.85157092,84.377,84.342,11.85648905]
[1773062243003,11.85157092,84.377,84.343,0.53131008]
[1773062243317,11.85157092,84.377,84.351,0.53131008]
[1773062243617,0.3588764,84.376,84.351,0.53131008]
[1773062245217,0.3588764,84.369,84.341,0.53131008]
[1773062245920,0.3588764,84.359,84.332,0.53131008]
[1773062247411,11.85424026,84.358,84.332,0.53131008]
[1773062248102,0.3588764,84.357,84.326,12.39004878]
[1773062248303,0.3588764,84.357,84.327,0.53131008]
[1773062249320,11.85424026,84.358,84.331,0.53131008]
[1773062249519,11.85269471,84.369,84.341,0.53131008]
[1773062250522,29.62943714,84.376,84.341,0.53131008]
[1773062250523,11.85143046,84.378,84.341,0.53131008]
[1773062250719,0.3588764,84.377,84.341,0.53131008]
[1773062251714,11.85171138,84.376,84.343,0.53131008]
[1773062251921,11.85171138,84.376,84.351,0.53131008]
[1773062253825,4.32083632,84.37,84.343,0.49624141]
[1773062254410,4.67971272,84.37,84.343,0.49624141]
[1773062254611,0.3588764,84.369,84.343,0.49624141]
[1773062255822,0.3588764,84.357,84.33,0.49624141]
[1773062256335,0.3588764,84.357,84.301,3.69383402]
[1773062256336,0.3588764,84.339,84.31,1e-08]
[1773062256534,0.3588764,84.319,84.29,0.2]
[1773062257322,0.3588764,84.328,84.301,0.49624141]
[1773062257519,0.3588764,84.328,84.302,0.49624141]
[1773062257920,11.85859807,84.327,84.302,0.49624141]
[1773062258238,11.85859807,84.327,84.293,0.49624141]
[1773062258239,4.67971272,84.32,84.293,0.49624141]
[1773062258538,0.3588764,84.319,84.293,0.49624141]
[1773062259723,0.3588764,84.319,84.29,0.2]
[1773062259930,4.32083632,84.31,84.29,0.2]
[1773062260127,11.86112989,84.309,84.29,0.2]
[1773062261138,12.96931482,84.319,84.291,0.49624141]
[1773062261445,24.82908697,84.319,84.292,0.49624141]
[1773062263940,24.82908697,84.319,84.291,11.86366278]
[1773062263941,7.37612611,84.319,84.293,41.52183455]
[1773062264148,22.22997317,84.356,84.311,0.49624141]
[1773062264440,4.32083632,84.38,84.341,0.49624141]
[1773062264646,0.49692341,84.369,84.343,0.49624141]
[1773062264835,0.49692341,84.359,84.331,0.49624141]
[1773062265334,4.32083632,84.37,84.331,0.49624141]
[1773062265335,0.49692341,84.369,84.331,0.49624141]
[1773062265526,7.41613469,84.378,84.351,0.49624141]
[1773062266043,11.85157092,84.377,84.353,0.49624141]
[1773062267038,11.85157092,84.377,84.351,0.49602178]
[1773062267440,7.41613469,84.378,84.351,0.49602178]
[1773062267745,7.41613469,84.378,84.361,0.49602178]
[1773062268140,11.85157092,84.377,84.361,0.49602178]
[1773062269035,0.46859128,84.376,84.352,11.85507201]
[1773062269344,0.46859128,84.376,84.35,4.32083632]
[1773062269538,0.46859128,84.376,84.35,16.17607395]
[1773062269744,0.46859128,84.376,84.35,4.32083632]
[1773062270127,11.85185185,84.375,84.35,16.17608556]
[1773062270948,11.85185185,84.375,84.35,16.67210734]
[1773062271538,7.41613469,84.378,84.351,0.49602178]
[1773062271739,11.85157092,84.377,84.351,0.49602178]
[1773062272546,0.46859128,84.376,84.351,0.49602178]
[1773062272759,0.46859128,84.376,84.35,16.17608556]
[1773062272956,11.85157092,84.377,84.351,0.49602178]
[1773062273853,12.3201622,84.377,84.353,0.49602178]
[1773062275041,0.46859128,84.376,84.345,0.49602178]
[1773062275342,0.46859128,84.376,84.35,4.32083632]
[1773062275738,11.85185185,84.375,84.351,0.49602178]
[1773062276155,0.46859128,84.374,84.351,0.49602178]
[1773062277657,7.41613469,84.378,84.351,0.49602178]
[1773062277866,11.85157092,84.377,84.353,0.49602178]
[1773062278163,0.46859128,84.376,84.35,4.32083632]
[1773062278348,0.46859128,84.376,84.351,0.49602178]
[1773062278740,0.46859128,84.376,84.351,12.35124578]
[1773062280460,11.85185185,84.375,84.352,0.49602178]
[1773062280640,0.46859128,84.374,84.352,0.49602178]
[1773062280840,0.46859128,84.374,84.351,11.855224]
[1773062281958,7.41613469,84.378,84.361,0.49602178]
[1773062282154,11.85157092,84.377,84.361,0.49602178]
[1773062282742,11.85157092,84.377,84.352,0.49602178]
[1773062284662,12.3414026,84.377,84.352,0.49602178]
[1773062285252,0.48983168,84.376,84.352,0.49602178]
[1773062286568,0.48983168,84.376,84.35,4.81215609]
[1773062286747,0.48983168,84.376,84.342,0.49131977]
[1773062287363,0.48983168,84.374,84.344,0.49131977]
[1773062287566,0.48983168,84.374,84.35,4.32083632]
[1773062288673,7.41613469,84.378,84.36,4.81215609]
[1773062288862,11.85157092,84.377,84.354,0.49131977]
[1773062289367,0.48983168,84.376,84.351,0.49131977]
[1773062289765,11.85157092,84.377,84.351,0.49131977]
[1773062290871,0.48983168,84.377,84.352,11.85508345]
[1773062291077,0.48983168,84.377,84.353,0.49131977]
[1773062292171,11.85171138,84.376,84.354,11.85480238]
[1773062292763,11.85171138,84.376,84.355,0.49131977]
[1773062293174,0.48983168,84.375,84.355,0.49131977]
[1773062293378,0.48983168,84.375,84.35,4.32083632]
[1773062293579,0.48983168,84.375,84.351,11.855224]
[1773062294263,0.48983168,84.373,84.351,0.49131977]
[1773062295877,0.48983168,84.373,84.35,16.17609177]
[1773062295878,0.48983168,84.373,84.35,4.32083632]
[1773062296376,0.48983168,84.371,84.349,11.855404]
[1773062296579,0.48983168,84.371,84.35,4.32083632]
[1773062297174,0.48983168,84.371,84.325,57.4]
[1773062297175,0.48983168,84.371,84.34,16.17755491]
[1773062297679,0.48983168,84.369,84.34,16.17755491]
[1773062297854,0.48983168,84.369,84.34,11.85671859]
[1773062298257,0.48983168,84.367,84.335,0.49131977]
[1773062298584,0.48983168,84.367,84.33,4.32083632]
[1773062299884,0.48983168,84.359,84.321,11.85944189]
[1773062300079,0.48983168,84.349,84.321,11.85944189]
[1773062300378,0.48983168,84.347,84.317,11.8600045]
[1773062300680,0.48983168,84.347,84.316,12.35137993]
[1773062301081,0.48983168,84.347,84.32,4.32083632]
[1773062301284,0.48983168,84.339,84.301,0.49131977]
[1773062301477,41.49475979,84.348,84.301,0.49131977]
[1773062301478,0.48983168,84.329,84.301,0.49131977]
[1773062302580,12.34828913,84.328,84.303,0.49131977]
[1773062302883,0.48983168,84.327,84.303,0.49131977]
[1773062303078,11.85845745,84.328,84.303,0.49131977]
[1773062304791,0.48983168,84.327,84.303,0.49131977]
[1773062304993,0.48983168,84.327,84.304,12.35315313]
[1773062305193,0.48983168,84.327,84.3,16.67640979]
[1773062305486,0.48983168,84.327,84.3,0.49131977]
[1773062306279,0.48983168,84.327,84.295,0.49131977]
[1773062306868,11.8587387,84.326,84.302,0.49131977]
[1773062307271,0.48983168,84.325,84.302,0.49131977]
[1773062307585,0.48983168,84.325,84.297,11.86277078]
[1773062308183,0.48983168,84.325,84.298,0.49131977]
[1773062308478,0.48983168,84.319,84.293,11.86326343]
[1773062308881,0.48983168,84.335,84.294,0.49131977]
[1773062309084,0.48983168,84.329,84.301,0.49131977]
[1773062310391,0.48983168,84.339,84.311,0.49131977]
[1773062311465,0.48983168,84.338,84.313,0.49131977]
[1773062311672,0.48983168,84.341,84.32,0.49131977]
[1773062312081,0.48983168,84.339,84.313,0.49131977]
[1773062312479,0.48983168,84.339,84.301,0.49131977]
[1773062313782,0.4884269,84.337,84.304,0.4800294]
[1773062314384,0.4884269,84.337,84.311,0.4800294]
[1773062315905,0.4884269,84.335,84.312,11.86070784]
[1773062317275,0.4884269,84.335,84.311,0.4800294]
[1773062318996,0.4884269,84.333,84.311,12.34081343]
[1773062319170,0.4884269,84.333,84.312,0.4800294]
[1773062319371,0.4884269,84.346,84.312,0.4800294]
[1773062319584,0.4884269,84.339,84.311,11.86078403]
[1773062319785,0.4884269,84.339,84.307,0.4800294]
[1773062320077,0.4884269,84.329,84.301,0.4800294]
[1773062320774,11.85845745,84.328,84.303,11.86197406]
[1773062320985,0.4884269,84.327,84.303,0.4800294]
[1773062321681,0.4884269,84.327,84.303,12.34200346]
[1773062322180,0.4884269,84.327,84.304,0.4800294]
[1773062322595,0.4884269,84.327,84.303,11.86197406]
[1773062324197,0.4884269,84.325,84.303,0.4800294]
[1773062326506,0.49424709,84.323,84.303,0.4800294]
[1773062326706,0.49424709,84.323,84.302,11.86201195]
[1773062327810,0.49424709,84.321,84.298,11.86267764]
[1773062328306,0.49424709,84.321,84.298,12.35904681]
[1773062328508,0.49424709,84.321,84.299,0.49636917]
[1773062330300,11.85930124,84.322,84.299,0.49636917]
[1773062330301,0.49424709,84.319,84.299,0.49636917]
[1773062331912,0.49424709,84.319,84.29,0.2]
[1773062332103,0.49424709,84.309,84.29,0.2]
[1773062332414,0.49424709,84.299,84.28,0.2]
[1773062332921,0.49424709,84.312,84.282,0.49636917]
[1773062333099,0.49424709,84.31,84.282,0.49636917]
[1773062333302,0.49424709,84.309,84.282,0.49636917]
[1773062334227,0.49424709,84.309,84.28,12.06520918]
[1773062334602,11.86127057,84.308,84.28,12.06520918]
[1773062334801,0.49424709,84.307,84.28,12.06520918]
[1773062335404,0.49424709,84.299,84.28,0.2]
[1773062336409,0.49424709,84.299,84.27,11.86655481]
[1773062336811,0.49424709,84.297,84.261,11.86788668]
[1773062337115,0.49424709,84.297,84.261,12.36425585]
[1773062337312,0.49424709,84.297,84.262,0.49636917]
[1773062338012,0.49424709,84.289,84.262,0.49636917]
[1773062338414,0.49424709,84.289,84.261,11.86788668]
[1773062338625,0.49424709,84.289,84.26,0.2]
[1773062338803,0.49424709,84.277,84.26,0.2]
[1773062339321,4.32280882,84.3,84.262,0.49636917]
[1773062339717,46.61862229,84.318,84.262,0.49636917]
[1773062340021,4.32280882,84.28,84.26,0.2]
[1773062340208,0.28432314,84.303,84.26,0.2]
[1773062340407,4.32280882,84.28,84.26,0.2]
[1773062340808,11.86112989,84.309,84.273,0.49636917]
[1773062341111,0.49424709,84.308,84.28,4.32280882]
[1773062341308,0.49424709,84.308,84.281,0.49636917]
[1773062341708,0.49424709,84.299,84.27,0.49636917]
[1773062342916,0.49424709,84.297,84.271,0.49636917]
[1773062344322,11.86267764,84.298,84.271,0.49636917]
[1773062344620,0.49711281,84.301,84.271,0.49636917]
[1773062344820,0.49711281,84.301,84.273,0.46434013]
[1773062345504,0.49711281,84.299,84.273,0.46434013]
[1773062345912,0.49711281,84.289,84.261,0.46434013]
[1773062347329,0.49711281,84.289,84.26,12.06799075]
[1773062347330,0.49711281,84.279,84.26,0.2]
[1773062349427,0.49711281,84.277,84.26,0.2]
[1773062349812,0.49711281,84.269,84.25,0.2]
[1773062350132,0.49711281,84.259,84.24,7.4969412]
[1773062350310,0.49711281,84.259,84.23,0.2]
[1773062350311,4.32280882,84.25,84.232,0.46434013]
[1773062350715,4.32280882,84.26,84.232,0.46434013]
[1773062350928,0.49711281,84.265,84.232,0.46434013]
[1773062351125,4.32280882,84.26,84.232,0.46434013]
[1773062351428,11.86816838,84.259,84.234,0.46434013]
[1773062353733,12.36528119,84.259,84.236,0.46434013]
[1773062353931,0.49711281,84.258,84.236,0.46434013]
[1773062354131,0.49711281,84.249,84.23,0.2]
[1773062355027,0.49711281,84.249,84.215,0.46434013]
[1773062355331,0.49711281,84.249,84.211,0.46434013]
[1773062355626,4.32280882,84.25,84.21,4.52280882]
[1773062355627,11.86999976,84.246,84.214,0.46434013]
[1773062356032,4.32280882,84.24,84.214,0.46434013]
[1773062356935,0.49711281,84.245,84.214,0.46434013]
[1773062357332,4.32280882,84.24,84.214,0.46434013]
[1773062357632,0.49711281,84.217,84.192,0.46434013]
[1773062357941,3.69383402,84.237,84.201,0.46434013]
[1773062357942,11.87290953,84.226,84.201,0.46434013]
[1773062358451,12.37002234,84.226,84.201,0.46434013]
[1773062358632,0.49711281,84.225,84.201,0.46434013]
[1773062359327,11.87290953,84.226,84.201,0.46434013]
[1773062359514,11.87228471,84.23,84.201,0.46434013]
[1773062360034,0.49711281,84.248,84.211,0.46434013]
[1773062360333,4.32280882,84.24,84.211,0.46434013]
[1773062361223,4.81992163,84.25,84.211,0.46434013]
[1773062361419,11.86929531,84.251,84.221,0.46434013]
[1773062361615,12.36640812,84.251,84.221,0.46434013]
[1773062361916,12.36640812,84.251,84.222,0.46434013]
[1773062361917,0.49711281,84.247,84.222,0.46434013]
[1773062362337,11.86971797,84.248,84.222,0.46434013]
[1773062362543,11.86929531,84.251,84.222,0.46434013]
[1773062363039,0.49711281,84.239,84.216,0.46434013]
[1773062363753,0.49711281,84.239,84.201,0.46434013]
[1773062364035,11.87112704,84.238,84.211,0.46434013]
[1773062365936,0.49711281,84.235,84.205,11.87565397]
[1773062366134,0.49711281,84.235,84.206,0.46434013]
[1773062367520,0.49711281,84.229,84.199,0.46434013]
[1773062367921,0.49711281,84.227,84.199,0.46434013]
[1773062368635,0.49711281,84.222,84.2,11.87648456]
[1773062368942,0.49711281,84.222,84.201,0.46434013]
[1773062369321,4.3324088,84.22,84.201,0.46434013]
[1773062370238,0.49711281,84.218,84.194,0.46434013]
[1773062370540,11.87380519,84.219,84.196,0.46434013]
[1773062370746,11.87329196,84.223,84.196,0.46434013]
[1773062370922,4.3324088,84.22,84.196,0.46434013]
[1773062371324,4.3324088,84.24,84.201,0.46434013]
[1773062371325,29.67769019,84.239,84.201,0.46434013]
[1773062371626,11.87112704,84.238,84.201,0.46434013]
[1773062371827,11.87112704,84.238,84.211,0.46434013]
[1773062372022,42.04605746,84.238,84.211,0.46434013]
[1773062372228,0.49711281,84.237,84.211,0.46434013]
[1773062372429,0.49711281,84.219,84.18,4.3324088]
[1773062372619,4.3324088,84.21,84.18,4.3324088]
[1773062372840,4.3324088,84.22,84.18,4.3324088]
[1773062373040,0.49711281,84.219,84.18,4.3324088]
[1773062374445,0.47668754,84.217,84.182,0.46670467]
[1773062374742,0.47668754,84.217,84.191,0.46670467]
[1773062376341,0.47668754,84.217,84.192,11.87761307]
[1773062376546,11.87422817,84.216,84.193,0.46670467]
[1773062376747,4.3324088,84.21,84.188,0.46670467]
[1773062376929,0.47668754,84.209,84.188,0.46670467]
[1773062377742,0.47668754,84.209,84.181,0.46670467]
[1773062378656,0.47668754,84.207,84.182,0.46670467]
[1773062379442,0.47668754,84.207,84.177,11.87961818]
[1773062379639,0.47668754,84.235,84.191,0.46670467]
[1773062379845,0.47668754,84.235,84.201,0.46670467]
[1773062380042,0.47668754,84.209,84.17,4.3324088]
[1773062380356,0.47668754,84.217,84.181,0.46670467]
[1773062380534,11.87422817,84.216,84.181,0.46670467]
[1773062380733,0.47668754,84.215,84.183,0.46670467]
[1773062382743,0.47668754,84.209,84.176,0.46670467]
[1773062382943,0.47668754,84.209,84.17,4.3324088]
[1773062382944,0.47668754,84.209,84.171,0.46670467]
[1773062383659,0.47668754,84.209,84.181,0.46670467]
[1773062383838,41.56078561,84.214,84.181,0.46670467]
[1773062384038,42.03747315,84.214,84.181,0.46670467]
[1773062384661,30.15933219,84.225,84.192,0.46670467]
[1773062384848,0.47668754,84.224,84.192,0.46670467]
[1773062386752,0.47668754,84.222,84.192,0.46670467]
[1773062390152,11.87169076,84.234,84.211,0.4836295]
[1773062392254,12.34441823,84.234,84.211,0.4836295]
[1773062392960,0.47272747,84.233,84.211,0.4836295]
[1773062393361,0.47272747,84.233,84.203,0.4836295]
[1773062393561,11.87169076,84.234,84.203,0.4836295]
[1773062393748,0.47272747,84.233,84.203,0.4836295]
[1773062393953,12.34470011,84.232,84.203,0.4836295]
[1773062394259,12.34470011,84.232,84.201,11.87630198]
[1773062394260,11.87197264,84.232,84.211,0.4836295]
[1773062394861,2.08820009,84.238,84.221,0.4836295]
[1773062395057,11.87126797,84.237,84.221,0.4836295]
[1773062395252,12.34399544,84.237,84.211,0.4836295]
[1773062395947,12.34399544,84.237,84.21,4.3324088]
[1773062395948,12.34399544,84.237,84.213,0.4836295]
[1773062396144,12.34399544,84.237,84.163,57.4]
[1773062396145,0.47272747,84.229,84.163,57.4]
[1773062396341,0.47272747,84.229,84.154,165.3]
[1773062396342,0.47272747,84.229,84.19,4.3324088]
[1773062397463,4.3324088,84.23,84.19,4.3324088]
[1773062397464,0.47272747,84.227,84.191,11.87775415]
[1773062398162,0.47272747,84.227,84.192,0.4836295]
[1773062398946,0.47272747,84.227,84.193,0.4836295]
[1773062399350,0.47272747,84.225,84.193,12.36098652]
[1773062399563,0.47272747,84.225,84.193,0.4836295]
[1773062400067,0.47272747,84.225,84.194,11.87733092]
[1773062400268,0.47272747,84.225,84.195,0.4836295]
[1773062400655,11.87179444,84.234,84.211,0.4836295]
[1773062401347,0.47272747,84.233,84.201,0.4836295]
[1773062401870,0.47272747,84.219,84.188,0.4836295]
[1773062402967,0.47272747,84.219,84.18,4.3324088]
[1773062402968,0.47272747,84.219,84.174,0.4836295]
[1773062403169,0.47590845,84.209,84.174,0.4836295]
[1773062403959,0.47590845,84.207,84.176,0.48349648]
[1773062404160,11.87535626,84.208,84.181,0.48349648]
[1773062404671,0.47590845,84.239,84.201,0.48349648]
[1773062404870,0.47590845,84.239,84.211,0.48349648]
[1773062405846,12.34703549,84.238,84.211,0.48349648]
[1773062406053,12.34703549,84.238,84.2,4.3324088]
[1773062406054,0.4960586,84.219,84.171,0.14216157]
[1773062406356,0.4960586,84.209,84.171,0.28432314]
[1773062406756,0.4960586,84.209,84.17,4.3324088]
[1773062407175,0.4960586,84.207,84.171,41.58201755]
[1773062407482,0.4960586,84.207,84.172,0.28432314]
[1773062407675,0.4960586,84.207,84.172,0.14216157]
[1773062407975,0.4960586,84.199,84.161,0.28432314]
[1773062409181,0.4960586,84.197,84.163,0.28432314]
[1773062409777,11.87676666,84.198,84.163,0.28432314]
[1773062409978,11.87549728,84.207,84.18,4.3324088]
[1773062410669,12.37155588,84.207,84.171,0.28432314]